{"text_format":"1","workbook":"xlsx","n_sheets":3,"sheets":["Acc","FrmPC","BD"],"not_rendered":{"charts":0,"images":4,"macros":1,"external_links":0,"defined_names":4,"comments":1,"pivot_tables":0},"unopened":[],"bounds":{"document_bytes":16777216,"sheet_cells":100000,"rows_first":2000,"rows_last":500,"rows_between":2000,"halvings":0,"cell_chars":16384,"cell_head_chars":4096},"cells_cut":0,"cells_raw":0,"read":"whole","date_system":"1900"}

{"sheet":"Acc","index":0,"n_rows":0,"n_cols":0,"rows_kept":0,"cut":false,"hidden":false,"merged":[]}

{"sheet":"FrmPC","index":1,"n_rows":35,"n_cols":6,"rows_kept":35,"cut":false,"hidden":false,"merged":[[17,1,17,5],[1,0,2,2],[1,3,1,5],[7,3,7,4],[15,0,15,5],[16,1,16,5],[18,1,18,5],[19,1,19,5],[20,0,21,0],[20,1,21,5],[24,0,24,2],[24,3,24,5],[31,0,31,2],[31,3,31,5],[25,0,25,2],[25,3,25,5],[27,0,27,2],[27,3,27,5],[29,0,29,2],[29,3,29,5]]}
[]
[null,null,null,"Prise en charge"]
[null,null,null,"N° PC","Date","Situation"]
[null,null,null,2,{"$f":"VLOOKUP(D4,BDPC,11,FALSE)","v":"2016-01-28"},{"$f":"VLOOKUP(D4,BDPC,22,FALSE)","v":"Fini"}]
[]
["12 rue François Robin",null,"Nom:",{"$f":"VLOOKUP(D4,BDPC,3,FALSE)","v":"FABRE"}]
["56100 Lorient",null,"Prénom:",{"$f":"VLOOKUP(D4,BDPC,4,FALSE)","v":"Estelle"}]
["Téléphone: ","02 97 64 48 65","Adresse:",{"$f":"VLOOKUP(D4,BDPC,5,FALSE)","v":"12 Pasteur"}]
["Mobile:","06 09 99 46 36"]
["E-mail: helpmicro@hotmail.fr",null,"Code Postal:",{"$f":"VLOOKUP(D4,BDPC,6,FALSE)","v":"75000"},"Ville:",{"$f":"VLOOKUP(D4,BDPC,7,FALSE)","v":"Paris"}]
["Site: www.helpmicro-lorient.com",null,"Téléphone:",{"$f":"VLOOKUP(D4,BDPC,8,FALSE)","v":976890987}]
[null,null,"Mobile:",{"$f":"VLOOKUP(D4,BDPC,9,FALSE)","v":0}]
[null,null,"Email:",{"$f":"VLOOKUP(D4,BDPC,10,FALSE)","v":"estelle@gmail.com"}]
[]
[]
["Produit Concerné"]
["Matériel:",{"$f":"VLOOKUP(D4,BDPC,12,FALSE)","v":"PC Portable"}]
["Marque:",{"$f":"VLOOKUP(D4,BDPC,13,FALSE)","v":"Asus ep121"}]
["S/N:",{"$f":"VLOOKUP(D4,BDPC,14,FALSE)","v":"c60kas101555"}]
["Etat:",{"$f":"VLOOKUP(D4,BDPC,15,FALSE)","v":"BON"}]
["Problème:",{"$f":"VLOOKUP(D4,BDPC,16,FALSE)","v":"Pb GPU -Pas d'affichage"}]
[]
[]
[]
["Récupération de données",null,null,"Commentaire & Version de OS"]
[{"$f":"VLOOKUP(D4,BDPC,18,FALSE)","v":""},null,null,{"$f":"VLOOKUP(D4,BDPC,17,FALSE)","v":"Windows 7"}]
[]
["Accessoires Fournis",null,null,{"$f":"VLOOKUP(D4,BDPC,20,FALSE)","v":"Sacoche"}]
[]
["Mot de passe de Windows ou Mac OSX:",null,null,{"$f":"VLOOKUP(D4,BDPC,19,FALSE)","v":""}]
[]
["Numéro de série du chargeur",null,null,{"$f":"VLOOKUP(D4,BDPC,21,FALSE)","v":"123456"}]
[]
[]
[true]

{"sheet":"BD","index":2,"n_rows":8,"n_cols":23,"rows_kept":8,"cut":false,"hidden":false,"merged":[]}
["iD","Civ","Nom","Prénom","Adresse","CP","Ville","Téléphone","Mobile","Email","Date","Matériel","Modèle","SN","Etat","Problème","Comment","Récup","PassW","Accessoire","N° chargeur","Situation","Autor."]
[1,"M","DUBOIS","Lucas","106 bis Rue de Mansart","21000","Dijon",987654576,635689562,"lucas@yahoo.fr","2016-01-27","Tablette","HP","45668","Hors service","Ne pas démarer","Windows Vista","non","","Chargeur","123456","Attente",true]
[2,"Me","FABRE","Estelle","12 Pasteur","75000","Paris",976890987,null,"estelle@gmail.com","2016-01-28","PC Portable","Asus ep121","c60kas101555","BON","Pb GPU -Pas d'affichage","Windows 7","","","Sacoche","123456","Fini",true]
[3,"Mle","MARTY","Elfy","Rue du Château","75000","Paris",908789876,null,"marty@live.com","2016-01-29","PC bureau","Toshiba","23544","correct","5 minutes coupe","Reinstaller Windows 10 - 60 euros ","Oui","25021946","Unité central","65644","Commande",true]
[4,"M","MARTY","Elfy 2","Rue du Château","75001","Paris",908789877,null,"marty@live.com","2016-01-30","Disque dur","Asus","7ML7NRI","moyen","écran casser","Mac OSX","","","Chargeur ","654","Devis",false]
[5,"M","MARTIN","Alex","12 Allée","21000","Dijon",499890987,665849846,"hoang@yahoo.fr","2015-12-26","Clé USB","Hp Pavillon DV6","","correct","Ne pas démarrer","Windows XP","Outlook","","Chargeur ","WASHD0AARYJ0OE","Annulé",true]
[6,"M","DUPONT","Jean","ZAC Nord","01000","BOURG",412345678,null,"sec@bidon.fr","2016-07-02","PC Portable","Dell","CNF012DQYB","Correct","Lenteur","Windows 7","Oui","Démo","Sacoche","6544","Attente",true]
[7,"","GALOPIN",null,"","","",null,null,"","2016-10-06","","","","","","","","","","","",true]